fUST/lending_fUST_20240502
["ID","MTS","AMOUNT","RATE_DAILY","PERIOD"]
[325214069,1714590651466,-500.0,0.00053972,120]
[325214070,1714590651476,-1009.36,0.00053972,120]
[325214071,1714590651485,-644.36,0.00053972,120]
[325214072,1714590651495,-500.0,0.00053972,120]
[325214073,1714590651505,-500.0,0.00053972,120]
[325214074,1714590651515,-500.0,0.00053972,120]
[325214075,1714590651524,-1003.72,0.00053972,120]
[325214076,1714590651534,-1065.34,0.00053972,120]
[325214077,1714590651544,-500.0,0.00053972,120]
[325214078,1714590651553,-606.08416733,0.00053972,120]
[325214079,1714590651563,-500.0,0.00053972,120]
[325214080,1714590651572,-1017.66,0.00053972,120]
[325214081,1714590651582,-837.17,0.00053972,2]
[325214082,1714590651595,-698.14,0.00053972,120]
[325214083,1714590651605,-835.23,0.00053972,120]
[325214084,1714590651615,-500.0,0.00053972,120]
[325214085,1714590651625,-223.60349342,0.00053972,120]
[325214086,1714590651634,-900.9,0.00053972,120]
[325214087,1714590651644,-884.74,0.00053972,120]
[325214088,1714590651654,-647.64,0.00053972,120]
[325214089,1714590651663,-500.0,0.00053972,120]
[325214090,1714590651673,-151.0,0.00053972,7]
[325214091,1714590651683,-500.0,0.00053972,120]
[325214092,1714590651693,-151.0,0.00053972,7]
[325214093,1714590651703,-500.0,0.00053972,120]
[325214094,1714590651712,-151.0,0.00053972,7]
[325214095,1714590651722,-151.0,0.00053972,7]
[325214096,1714590651732,-642.39,0.00053972,120]
[325214097,1714590651742,-500.0,0.00053972,5]
[325214098,1714590651752,-500.0,0.00053972,120]
[325214099,1714590651762,-7693.02,0.00053972,120]
[325214100,1714590651772,-199.026093,0.00053972,7]
[325214101,1714590651782,-500.0,0.00053972,120]
[325214102,1714590651792,-500.0,0.00053972,120]
[325214103,1714590651801,-500.0,0.00053972,120]
[325214104,1714590651811,-500.0,0.00053972,120]
[325214105,1714590651821,-500.0,0.00053972,120]
[325214106,1714590651831,-501.00267243,0.00053972,120]
[325214107,1714590651845,-803.62,0.00053972,120]
[325214108,1714590651857,-841.27,0.00053972,120]
[325214109,1714590651867,-1812.87,0.00053972,120]
[325214110,1714590651877,-500.0,0.00053972,120]
[325214111,1714590651887,-500.0,0.00053972,120]
[325214112,1714590651896,-151.0,0.00053972,7]
[325214113,1714590651906,-151.0,0.00053972,7]
[325214114,1714590651916,-500.0,0.00053972,120]
[325214115,1714590651926,-838.92,0.00053972,120]
[325214116,1714590651935,-500.0,0.00053972,120]
[325214117,1714590651945,-151.0,0.00053972,7]
[325214118,1714590651955,-151.0,0.00053972,7]
[325214119,1714590651966,-500.0,0.00053972,120]
[325214120,1714590651976,-1089.88,0.00053972,21]
[325214121,1714590651985,-500.0,0.00053972,120]
[325214122,1714590651995,-500.0,0.00053972,120]
[325214123,1714590652004,-500.0,0.00053972,120]
[325214124,1714590652014,-500.0,0.00053972,120]
[325214125,1714590652024,-1408.48,0.00053972,120]
[325214126,1714590652034,-502.4256326,0.00053972,120]
[325214127,1714590652044,-199.82867865,0.00053972,120]
[325214128,1714590652055,-500.0,0.00053972,120]
[325214129,1714590652065,-630.35,0.00053972,120]
[325214130,1714590652075,-500.0,0.00053972,120]
[325214131,1714590652084,-297.86734,0.00053972,7]
[325214132,1714590652098,-297.86734,0.00053972,7]
[325214133,1714590652108,-1030.87,0.00053972,120]
[325214134,1714590652117,-687.42,0.00053972,120]
[325214135,1714590652127,-380.191955,0.00053972,7]
[325214136,1714590652136,-3633.8,0.00053972,120]
[325214137,1714590652146,-380.191955,0.00053972,7]
[325214138,1714590652155,-297.86734,0.00053972,7]
[325214139,1714590652165,-297.86734,0.00053972,7]
[325214140,1714590652174,-2134.0,0.00053972,2]
[325214141,1714590652183,-380.191955,0.00053972,7]
[325214142,1714590652193,-500.0,0.00053972,60]
[325214143,1714590652202,-380.191955,0.00053972,7]
[325214144,1714590652212,-778.92,0.00053972,7]
[325214145,1714590652223,-500.0,0.00053972,120]
[325214146,1714590652233,-500.0,0.00053972,120]
[325214147,1714590652244,-151.0,0.00053972,7]
[325214148,1714590652253,-151.0,0.00053972,7]
[325214149,1714590652263,-1916.12,0.00053972,120]
[325214150,1714590652272,-558.33,0.00053972,120]
[325214151,1714590652282,-500.0,0.00053972,120]
[325214152,1714590652291,-571.93,0.00053972,120]
[325214153,1714590652300,-544.83,0.00053972,120]
[325214154,1714590652310,-977.94,0.00053972,120]
[325214155,1714590652319,-500.0,0.00053972,120]
[325214156,1714590652330,-1196.74,0.00053972,120]
[325214157,1714590652342,-151.0,0.00053972,7]
[325214158,1714590652356,-151.0,0.00053972,7]
[325214159,1714590652365,-500.0,0.00053972,120]
[325214160,1714590652374,-1032.6,0.00053972,120]
[325214161,1714590652384,-1059.26,0.00053972,120]
[325214162,1714590652394,-500.0,0.00053972,120]
[325214163,1714590652404,-151.0,0.00053972,7]
[325214164,1714590652413,-151.0,0.00053972,7]
[325214165,1714590652424,-533.59,0.00053972,120]
[325214166,1714590652433,-159.964079,0.00053972,7]
[325214167,1714590652443,-159.964079,0.00053972,7]
[325214168,1714590652452,-500.0,0.00053972,120]
[325214169,1714590652462,-707.13,0.00053972,120]
[325214170,1714590652471,-500.0,0.00053972,120]
[325214171,1714590652481,-159.964079,0.00053972,7]
[325214172,1714590652491,-159.964079,0.00053972,7]
[325214173,1714590652500,-801.68,0.00053972,120]
[325214174,1714590652511,-762.3,0.00053972,120]
[325214175,1714590652521,-502.71,0.00053972,120]
[325214176,1714590652531,-500.0,0.00053972,120]
[325214177,1714590652689,-500.0,0.00053972,120]
[325214178,1714590652699,-500.0,0.00053972,120]
[325214179,1714590652710,-500.0,0.00053972,120]
[325214180,1714590652719,-500.0,0.00053972,120]
[325214181,1714590652729,-579.370636,0.00053972,7]
[325214182,1714590652738,-579.370636,0.00053972,7]
[325214183,1714590652747,-579.370636,0.00053972,7]
[325214184,1714590652757,-579.370636,0.00053972,7]
[325214185,1714590652767,-500.0,0.00053972,120]
[325214186,1714590652776,-500.0,0.00053972,120]
[325214187,1714590652786,-500.0,0.00053972,120]
[325214188,1714590652795,-597.2283522,0.00053972,120]
[325214189,1714590652807,-5923.71,0.00053972,120]
[325214190,1714590652817,-4672.9,0.00053972,120]
[325214191,1714590652826,-655.29,0.00053972,120]
[325214192,1714590652836,-601.956044,0.00053972,7]
[325214193,1714590652848,-601.956044,0.00053972,7]
[325214194,1714590652857,-14308.02,0.00053972,120]
[325214195,1714590652866,-1192.0,0.00053972,120]
[325214196,1714590652876,-540.12,0.00053972,120]
[325214197,1714590652885,-159.997287,0.00053972,7]
[325214198,1714590652895,-159.997287,0.00053972,7]
[325214199,1714590652905,-601.956044,0.00053972,7]
[325214200,1714590652914,-601.956044,0.00053972,7]
[325214201,1714590652923,-500.0,0.00053972,120]
[325214202,1714590652933,-500.0,0.00053972,120]
[325214203,1714590652942,-159.997287,0.00053972,7]
[325214204,1714590652952,-542.97,0.00053972,120]
[325214205,1714590652962,-159.997287,0.00053972,7]
[325214206,1714590652971,-500.0,0.00053972,120]
[325214207,1714590652980,-500.0,0.00053972,120]
[325214208,1714590652990,-151.0,0.00053972,7]
[325214209,1714590653000,-938.23,0.00053972,120]
[325214210,1714590653009,-500.0,0.00053972,120]
[325214211,1714590653019,-500.0,0.00053972,120]
[325214212,1714590653029,-279.71374118,0.00053972,120]
[325214213,1714590653039,-675.97,0.00053972,120]
[325214214,1714590653048,-500.0,0.00053972,120]
[325214215,1714590653058,-500.0,0.00053972,120]
[325214216,1714590653068,-2214.82,0.00053972,120]
[325214217,1714590653078,-1163.11,0.00053972,120]
[325214218,1714590653087,-873.13,0.00053972,120]
[325214219,1714590653099,-724.44,0.00053972,120]
[325214220,1714590653113,-500.0,0.00053972,120]
[325214221,1714590653123,-500.0,0.00053972,120]
[325214222,1714590653133,-516.00612853,0.00053972,30]
[325214223,1714590653342,-1036.36387147,0.00053972,30]
[325214224,1714590653352,-460.0336781,0.00053972,120]
[325214225,1714590653361,-151.0,0.00053972,7]
[325214226,1714590653371,-2956.14,0.00053972,120]
[325214227,1714590653380,-500.0,0.00053972,120]
[325214228,1714590653390,-563.88,0.00053972,120]
[325214229,1714590653400,-369.01831701,0.00053972,120]
[325214230,1714590653410,-521.64,0.00053972,120]
[325214231,1714590653419,-151.0,0.00053972,7]
[325214232,1714590653428,-500.0,0.00053972,120]
[325214233,1714590653438,-801.18,0.00053972,120]
[325214234,1714590653447,-1957.91,0.00053972,120]
[325214235,1714590653456,-159.697609,0.00053972,7]
[325214236,1714590653466,-1098.11,0.00053972,120]
[325214237,1714590653475,-500.0,0.00053972,120]
[325214238,1714590653484,-151.0,0.00053972,7]
[325214239,1714590653494,-151.0,0.00053972,7]
[325214240,1714590653503,-500.0,0.00053972,120]
[325214241,1714590653512,-2177.83,0.00053972,120]
[325214242,1714590653522,-165.36275694,0.00053972,7]
[325214243,1714590653533,-172.84722106,0.00053972,7]
[325214244,1714590653542,-295.27918042,0.00053972,7]
[325214245,1714590653554,-42.93079758,0.00053972,7]
[325214246,1714590653563,-500.0,0.00053972,120]
[325214247,1714590653572,-502.79173737,0.00053972,120]
[325214248,1714590653581,-500.0,0.00053972,120]
[325214249,1714590653593,-338.209978,0.00053972,7]
[325214250,1714590653602,-338.209978,0.00053972,7]
[325214251,1714590653612,-500.0,0.00053972,120]
[325214252,1714590653620,-500.0,0.00053972,120]
[325214253,1714590653630,-640.21,0.00053972,120]
[325214254,1714590653639,-2885.13,0.00053972,120]
[325214255,1714590653648,-500.0,0.00053972,120]
[325214256,1714590653658,-163.440756,0.00053972,7]
[325214257,1714590653667,-163.440756,0.00053972,7]
[325214258,1714590653676,-500.0,0.00053972,120]
[325214259,1714590653686,-500.0,0.00053972,120]
[325214260,1714590653695,-500.0,0.00053972,30]
[325214261,1714590653705,-163.440756,0.00053972,7]
[325214262,1714590653714,-163.440756,0.00053972,7]
[325214263,1714590653724,-153.69519904,0.00053974,3]
[325214264,1714590653734,-2226.85928601,0.00054,120]
[325214265,1714590653745,-799.73071399,0.00054,120]
[325214266,1714590653755,-464.39460711,0.00054,54]
[325214267,1714590653777,-535.60539289,0.00054,54]
[325214268,1714590653786,-1000.0,0.00054,2]
[325214269,1714590653796,-77.16844635,0.00054022,120]
[325214270,1714590653807,-764.1130558,0.00054022,120]
[325214271,1714590653817,-151.0,0.00054137,120]
[325214272,1714590653827,-224.4,0.00054429,3]
[325214273,1714590653836,-437.411065,0.00054448,2]
[325214274,1714590653848,-177.0,0.000545,30]
[325214275,1714590653858,-178.0,0.000545,30]
[325214276,1714590653867,-289.052651,0.000545,98]
[325214277,1714590653877,-500.0,0.000545,44]
[325214278,1714590653886,-500.0,0.0005452,120]
[325214279,1714590653896,-58419.96238791,0.0005452,120]
[325214280,1714590653998,-590.96982,0.00052876,120]
[325214281,1714590654010,-10.08018,0.00052876,120]
[325214282,1714590654020,-643.86579961,0.0005452,120]
[325214283,1714590654412,-15672.89435023,0.00020913,2]
[325214284,1714590654424,-563.82324123,0.00020913,2]
[325214285,1714590654433,-7701.8,0.00052866,3]
[325214286,1714590654443,-500.0,0.00052876,120]
[325214287,1714590654453,-500.0,0.00052876,120]
[325214288,1714590654462,-500.0,0.00052876,120]
[325214289,1714590654471,-175.55,0.00053424,120]
[325214290,1714590654480,-212.490169,0.00053972,7]
[325214291,1714590654490,-16882.65879495,0.0005452,120]
[325214292,1714590654499,-500.0,0.0005452,120]
[325214293,1714590654508,-500.0,0.0005452,120]
[325214294,1714590654518,-500.0,0.0005452,120]
[325214295,1714590654528,-500.0,0.0005452,120]
[325214296,1714590654537,-500.0,0.0005452,120]
[325214297,1714590654547,-500.0,0.0005452,120]
[325214298,1714590654557,-500.0,0.0005452,120]
[325214299,1714590654566,-151.0,0.0005452,7]
[325214300,1714590654575,-500.0,0.0005452,120]
[325214301,1714590654584,-151.0,0.0005452,7]
[325214302,1714590654595,-151.0,0.0005452,7]
[325214303,1714590654604,-371.57677474,0.0005452,120]
[325214304,1714590654613,-500.0,0.0005452,120]
[325214305,1714590654622,-500.0,0.0005452,60]
[325214306,1714590654631,-500.0,0.0005452,120]
[325214307,1714590654640,-536.52,0.0005452,120]
[325214308,1714590654649,-151.0,0.0005452,7]
[325214309,1714590654658,-500.0,0.0005452,120]
[325214310,1714590654667,-500.0,0.0005452,120]
[325214311,1714590654676,-500.0,0.0005452,120]
[325214312,1714590654685,-823.13,0.0005452,120]
[325214313,1714590654695,-500.0,0.0005452,120]
[325214314,1714590654705,-500.0,0.0005452,120]
[325214315,1714590654714,-500.0,0.0005452,120]
[325214316,1714590654723,-970.01,0.0005452,120]
[325214317,1714590654733,-500.0,0.0005452,120]
[325214318,1714590654742,-830.41,0.0005452,120]
[325214319,1714590654751,-500.0,0.0005452,120]
[325214320,1714590654761,-1000.6,0.0005452,120]
[325214321,1714590654770,-500.0,0.0005452,120]
[325214322,1714590654780,-516.07,0.0005452,120]
[325214323,1714590654790,-521.28541285,0.0005452,120]
[325214324,1714590654799,-508.08,0.0005452,120]
[325214325,1714590654850,-500.0,0.0005452,120]
[325214326,1714590654859,-509.51641583,0.0005452,120]
[325214327,1714590654871,-500.0,0.0005452,120]
[325214328,1714590654881,-500.0,0.0005452,120]
[325214329,1714590654890,-201.26376216,0.0005452,120]
[325214330,1714590654899,-500.0,0.0005452,120]
[325214331,1714590654908,-377.2593386,0.0005452,120]
[325214332,1714590654918,-500.0,0.0005452,120]
[325214333,1714590654927,-501.79594019,0.0005452,120]
[325214334,1714590654936,-595.6,0.0005452,120]
[325214335,1714590654945,-500.0,0.0005452,120]
[325214336,1714590654955,-770.87,0.0005452,120]
[325214337,1714590654964,-570.28,0.0005452,120]
[325214338,1714590654973,-500.0,0.0005452,120]
[325214339,1714590654983,-500.0,0.0005452,120]
[325214340,1714590654992,-500.0,0.0005452,120]
[325214341,1714590655001,-500.0,0.0005452,120]
[325214342,1714590655011,-500.0,0.0005452,120]
[325214343,1714590655020,-500.0,0.0005452,120]
[325214344,1714590655030,-629.86,0.0005452,120]
[325214345,1714590655039,-500.0,0.0005452,120]
[325214346,1714590655048,-151.0,0.0005452,3]
[325214347,1714590655057,-646.53,0.0005452,120]
[325214348,1714590655067,-500.0,0.0005452,120]
[325214349,1714590655075,-1000.0,0.0005452,120]
[325214350,1714590655084,-797.48,0.0005452,120]
[325214351,1714590655095,-997.55,0.0005452,120]
[325214352,1714590655105,-782.72,0.0005452,120]
[325214353,1714590655115,-151.0,0.0005452,7]
[325214354,1714590655124,-151.0,0.0005452,7]
[325214355,1714590655133,-500.0,0.0005452,120]
[325214356,1714590655143,-221.86278269,0.0005452,120]
[325214357,1714590655160,-212.490169,0.00053972,7]
[325214358,1714590655169,-299.47721731,0.0005452,120]
[325214359,1714590655179,-844.52,0.0005452,120]
[325214360,1714590655188,-500.0,0.0005452,120]
[325214361,1714590655197,-680.19,0.0005452,120]
[325214362,1714590655207,-151.0,0.0005452,7]
[325214363,1714590655217,-151.0,0.0005452,7]
[325214364,1714590655227,-549.0,0.0005452,120]
[325214365,1714590655237,-267.0064316,0.0005452,120]
[325214366,1714590655249,-232.9935684,0.0005452,120]
[325214367,1714590655258,-806.65,0.0005452,120]
[325214368,1714590655268,-500.0,0.0005452,120]
[325214369,1714590655277,-151.0,0.0005452,7]
[325214370,1714590655287,-151.0,0.0005452,7]
[325214371,1714590655296,-500.0,0.0005452,120]
[325214372,1714590655305,-897.46,0.0005452,120]
[325214373,1714590655314,-500.0,0.0005452,120]
[325214374,1714590655323,-500.0,0.0005452,120]
[325214375,1714590655336,-151.0,0.0005452,7]
[325214376,1714590655349,-151.0,0.0005452,7]
[325214377,1714590655358,-692.14,0.0005452,120]
[325214378,1714590655368,-500.0,0.0005452,120]
[325214379,1714590655378,-500.0,0.0005452,120]
[325214380,1714590655387,-500.0,0.0005452,120]
[325214381,1714590655397,-500.0,0.0005452,120]
[325214382,1714590655407,-500.0,0.0005452,120]
[325214383,1714590655416,-929.98,0.0005452,120]
[325214384,1714590655425,-683.54,0.0005452,120]
[325214385,1714590655434,-500.0,0.0005452,2]
[325214386,1714590655443,-500.0,0.0005452,120]
[325214387,1714590655452,-151.0,0.0005452,7]
[325214388,1714590655462,-151.0,0.0005452,7]
[325214389,1714590655471,-1059.26,0.0005452,120]
[325214390,1714590655480,-500.0,0.0005452,120]
[325214391,1714590655489,-500.0,0.0005452,120]
[325214392,1714590655498,-500.0,0.0005452,120]
[325214393,1714590655508,-500.0,0.0005452,120]
[325214394,1714590655517,-500.0,0.0005452,120]
[325214395,1714590655526,-500.0,0.0005452,2]
[325214397,1714590655535,-500.0,0.0005452,120]
[325214398,1714590655544,-934.33,0.0005452,120]
[325214399,1714590655554,-500.0,0.0005452,120]
[325214400,1714590655563,-500.0,0.0005452,120]
[325214401,1714590655572,-500.0,0.0005452,120]
[325214402,1714590655581,-500.0,0.0005452,120]
[325214403,1714590655595,-1745.21,0.0005452,120]
[325214404,1714590655605,-500.0,0.0005452,120]
[325214405,1714590655614,-172.03711429,0.0005452,120]
[325214406,1714590655624,-500.0,0.0005452,120]
[325214407,1714590655633,-182.95680996,0.0005452,120]
[325214408,1714590655642,-500.0,0.0005452,120]
[325214409,1714590655651,-501.53776556,0.0005452,120]
[325214410,1714590655660,-778.84,0.0005452,120]
[325214411,1714590655670,-500.0,0.0005452,120]
[325214412,1714590655679,-500.0,0.0005452,120]
[325214413,1714590655689,-325.053855,0.0005452,7]
[325214414,1714590655699,-325.053855,0.0005452,7]
[325214415,1714590655708,-500.0,0.0005452,120]
[325214416,1714590655717,-325.053855,0.0005452,7]
[325214417,1714590655727,-325.053855,0.0005452,7]
[325214418,1714590655737,-588.76,0.0005452,120]
[325214419,1714590655746,-500.0,0.0005452,120]
[325214420,1714590655755,-500.0,0.0005452,120]
[325214421,1714590655765,-500.0,0.0005452,120]
[325214422,1714590655774,-500.0,0.0005452,120]
[325214423,1714590655784,-558.34,0.0005452,120]
[325214424,1714590655793,-500.0,0.0005452,120]
[325214425,1714590655803,-500.0,0.0005452,120]
[325214426,1714590655813,-500.0,0.0005452,120]
[325214427,1714590655823,-500.0,0.0005452,120]
[325214428,1714590655832,-238.074681,0.0005452,7]
[325214429,1714590655844,-500.0,0.0005452,120]
[325214430,1714590655854,-238.074681,0.0005452,7]
[325214431,1714590655864,-500.0,0.0005452,120]
[325214432,1714590655873,-169.09726661,0.0005452,120]
[325214433,1714590655883,-500.0,0.0005452,120]
[325214434,1714590655893,-42.37239632,0.0005452,7]
[325214435,1714590655907,-195.70228468,0.0005452,7]
[325214436,1714590655917,-632.61,0.0005452,120]
[325214437,1714590655926,-238.074681,0.0005452,7]
[325214438,1714590655935,-500.0,0.0005452,120]
[325214439,1714590655945,-151.0,0.0005452,7]
[325214440,1714590655955,-151.0,0.0005452,7]
[325214441,1714590655964,-151.0,0.0005452,7]
[325214442,1714590655975,-500.0,0.0005452,120]
[325214443,1714590655984,-859.28,0.0005452,120]
[325214444,1714590655994,-500.0,0.0005452,120]
[325214445,1714590656003,-500.0,0.0005452,120]
[325214446,1714590656013,-500.0,0.0005452,120]
[325214447,1714590656022,-1048.71,0.0005452,120]
[325214448,1714590656032,-500.0,0.0005452,120]
[325214449,1714590656041,-455.41973432,0.0005452,120]
[325214450,1714590656053,-583.19026568,0.0005452,120]
[325214451,1714590656062,-500.0,0.0005452,120]
[325214452,1714590656072,-500.0,0.0005452,120]
[325214453,1714590656081,-160.775161,0.0005452,7]
[325214454,1714590656094,-160.775161,0.0005452,7]
[325214455,1714590656103,-160.775161,0.0005452,7]
[325214456,1714590656112,-300.0,0.0005452,2]
[325214457,1714590656121,-728.02,0.0005452,120]
[325214458,1714590656130,-500.0,0.0005452,120]
[325214459,1714590656138,-500.0,0.0005452,120]
[325214460,1714590656148,-500.0,0.0005452,120]
[325214461,1714590656157,-151.0,0.0005452,7]
[325214462,1714590656166,-160.775161,0.0005452,7]
[325214463,1714590656176,-151.0,0.0005452,7]
[325214464,1714590656185,-160.775161,0.0005452,7]
[325214465,1714590656195,-160.775161,0.0005452,7]
[325214466,1714590656206,-500.0,0.0005452,120]
[325214467,1714590656215,-385.17017313,0.0005452,120]
[325214468,1714590656226,-500.0,0.0005452,120]
[325214469,1714590656236,-151.0,0.0005452,7]
[325214470,1714590656245,-151.0,0.0005452,7]
[325214471,1714590656255,-151.0,0.0005452,7]
[325214472,1714590656265,-500.0,0.0005452,120]
[325214473,1714590656275,-500.0,0.0005452,120]
[325214474,1714590656285,-1022.32,0.0005452,120]
[325214475,1714590656295,-500.0,0.0005452,120]
[325214476,1714590656304,-1486.05,0.0005452,120]
[325214477,1714590656314,-500.0,0.0005452,120]
[325214478,1714590656323,-945.1,0.0005452,120]
[325214479,1714590656334,-500.0,0.0005452,120]
[325214480,1714590656347,-500.0,0.0005452,120]
[325214481,1714590656356,-300.0,0.0005452,7]
[325214482,1714590656366,-528.52,0.0005452,120]
[325214483,1714590656375,-500.0,0.0005452,120]
[325214484,1714590656384,-500.0,0.0005452,120]
[325214485,1714590656394,-151.0,0.0005452,7]
[325214486,1714590656403,-151.0,0.0005452,7]
[325214487,1714590656413,-500.0,0.0005452,120]
[325214488,1714590656427,-151.0,0.0005452,7]
[325214489,1714590656437,-151.0,0.0005452,7]
[325214490,1714590656447,-500.0,0.0005452,120]
[325214491,1714590656457,-151.0,0.0005452,7]
[325214492,1714590656466,-151.0,0.0005452,7]
[325214493,1714590656475,-500.0,0.0005452,120]
[325214494,1714590656484,-500.0,0.0005452,120]
[325214495,1714590656493,-500.0,0.0005452,3]
[325214496,1714590656503,-500.0,0.0005452,120]
[325214497,1714590656512,-500.0,0.0005452,120]
[325214498,1714590656522,-3195.0,0.0005452,120]
[325214499,1714590656531,-306.5633656,0.0005452,120]
[325214500,1714590656540,-906.16,0.0005452,120]
[325214501,1714590656550,-550.08,0.0005452,120]
[325214502,1714590656560,-500.0,0.0005452,120]
[325214503,1714590656569,-1114.78,0.0005452,120]
[325214504,1714590656578,-3211.91,0.0005452,120]
[325214505,1714590656587,-500.0,0.0005452,120]
[325214506,1714590656603,-500.0,0.0005452,120]
[325214507,1714590656611,-249.661069,0.0005452,7]
[325214508,1714590656620,-249.661069,0.0005452,7]
[325214509,1714590656629,-500.0,0.0005452,120]
[325214510,1714590656638,-500.0,0.0005452,120]
[325214511,1714590656648,-249.661069,0.0005452,7]
[325214512,1714590656658,-249.661069,0.0005452,7]
[325214513,1714590656668,-746.4,0.0005452,120]
[325214514,1714590656677,-500.0,0.0005452,120]
[325214515,1714590656687,-500.0,0.0005452,120]
[325214516,1714590656699,-151.0,0.0005452,7]
[325214517,1714590656709,-151.0,0.0005452,7]
[325214518,1714590656719,-500.0,0.0005452,120]
[325214519,1714590656730,-616.87,0.0005452,120]
[325214520,1714590656739,-500.0,0.0005452,120]
[325214521,1714590656750,-500.0,0.0005452,120]
[325214522,1714590656760,-693.46,0.0005452,120]
[325214523,1714590656769,-769.33,0.0005452,120]
[325214524,1714590656779,-500.0,0.0005452,120]
[325214525,1714590656788,-500.0,0.0005452,120]
[325214526,1714590656798,-500.0,0.0005452,120]
[325214527,1714590656808,-348.35489215,0.0005452,120]
[325214528,1714590656818,-500.0,0.0005452,120]
[325214529,1714590656827,-151.0,0.0005452,7]
[325214530,1714590656837,-151.0,0.0005452,7]
[325214531,1714590656853,-500.0,0.0005452,120]
[325214532,1714590656863,-500.0,0.0005452,120]
[325214533,1714590656872,-500.0,0.0005452,120]
[325214534,1714590656882,-500.0,0.0005452,120]
[325214535,1714590656891,-500.0,0.0005452,120]
[325214536,1714590656901,-710.14,0.0005452,120]
[325214537,1714590656910,-500.0,0.0005452,120]
[325214538,1714590656919,-500.0,0.0005452,120]
[325214539,1714590656928,-687.72,0.0005452,120]
[325214540,1714590656938,-500.0,0.0005452,120]
[325214541,1714590656947,-500.0,0.0005452,120]
[325214542,1714590656956,-600.0,0.0005452,120]
[325214543,1714590656966,-1028.82,0.0005452,120]
[325214544,1714590656977,-865.76,0.0005452,120]
[325214545,1714590656987,-500.0,0.0005452,120]
[325214546,1714590656998,-500.0,0.0005452,120]
[325214547,1714590657008,-502.64532095,0.0005452,120]
[325214548,1714590657019,-500.0,0.0005452,120]
[325214549,1714590657028,-500.0,0.0005452,120]
[325214550,1714590657038,-500.0,0.0005452,120]
[325214551,1714590657048,-460.416991,0.0005452,7]
[325214552,1714590657058,-460.416991,0.0005452,7]
[325214553,1714590657067,-1010.85,0.0005452,120]
[325214554,1714590657077,-500.0,0.0005452,120]
[325214555,1714590657086,-460.416991,0.0005452,7]
[325214556,1714590657104,-460.416991,0.0005452,7]
[325214557,1714590657113,-500.0,0.0005452,120]
[325214558,1714590657123,-1009.36,0.0005452,120]
[325214559,1714590657133,-644.36,0.0005452,120]
[325214560,1714590657142,-500.0,0.0005452,120]
[325214561,1714590657152,-500.0,0.0005452,120]
[325214562,1714590657162,-272.30821333,0.0005452,120]
[325214563,1714590657172,-1003.72,0.0005452,120]
[325214564,1714590657181,-1065.34,0.0005452,120]
[325214565,1714590657191,-500.0,0.0005452,120]
[325214566,1714590657200,-477.38311973,0.0005452,120]
[325214567,1714590657209,-1017.66,0.0005452,120]
[325214568,1714590657220,-837.17,0.0005452,2]
[325214569,1714590657229,-698.14,0.0005452,120]